Cogmind - Beta 13 @@@ ROGUE MODE // 2024.03.31 @ 11:15:07 Player: Mili Result: Destroyed by Y-45 Defender with Heavy Assault Rifle Performance ------------- Evolutions (2) 1000 Regions Visited (6) 1200 Robots Destroyed (42) 210 Value Destroyed (1113) 1113 Prototype IDs (2) 40 Alien Tech Used (0) 0 Bonus (300) 300 TOTAL SCORE: 3863 Bonus ------- Aligned with FarCom 300 Cogmind --------- Core Integrity 0/550 Matter 290/300 Energy 97/100 System Corruption 0% Temperature Cool (18) Movement Core (400) Ox7 Location -8/Materials Parts ------- > --- POWER (2) -------- (None) > --- PROPULSION (4) --- (None) > --- UTILITY (3) ------ Large Storage Unit > --- WEAPON (2) ------- Power Maul > --- INVENTORY (15) --- (None) Peak State ------------ > --- POWER ------------ Ion Engine Light Nuclear Core > --- PROPULSION ------- Aluminum Leg Aluminum Leg Titanium Leg > --- UTILITY ---------- Large Storage Unit Weight Redist. System Shield Generator > --- WEAPON ----------- Improved Assault Rifle Improved Assault Rifle > --- INVENTORY -------- Aluminum Leg Minigun [Rating: 20] Favorites ----------- Power Improved Ion Engine Engine Improved Ion Engine Power Core Light Nuclear Core Propulsion Improved Treads Treads Improved Treads Leg Aluminum Leg Flight Unit Flight Unit Utility Large Storage Unit Device Weight Redist. System Storage Large Storage Unit Protection Light Armor Plating Weapon Improved Assault Rifle Energy Gun EM Pulse Gun Ballistic Gun Improved Assault Rifle Ballistic Cannon Flak Cannon Launcher Grenade Launcher Impact Weapon Power Maul Build | -11 -10 -9 -9 -9 -8 -8 ------- Run | Yrd Mat Mat Min Exi Min Mat Slots Evolved 4 | . . 2 . . . 2 Power 1 | . . . . . . 1 Propulsion 2 | . . 2 . . . . Utility 1 | . . . . . . 1 Weapon . | . . . . . . . Parts Attached 39 | 6 8 10 . . 7 8 Power 8 | 1 1 4 . . 1 1 Engine 6 | 1 1 3 . . . 1 Core 2 | . . 1 . . 1 . Reactor . | . . . . . . . Propulsion 16 | 2 4 3 . . 4 3 Treads 4 | . . 3 . . . 1 Leg 9 | 2 1 . . . 4 2 Wheel . | . . . . . . . Hover . | . . . . . . . Flight 3 | . 3 . . . . . Utility 6 | 1 2 1 . . . 2 Device 2 | . . . . . . 2 Storage 2 | 1 1 . . . . . Processor . | . . . . . . . Hackware . | . . . . . . . Protection 2 | . 1 1 . . . . Artifact . | . . . . . . . Weapon 9 | 2 1 2 . . 2 2 Energy Gun 1 | 1 . . . . . . Energy Cannon . | . . . . . . . Ballistic Gun 5 | 1 . 2 . . 1 1 Ballistic Cannon 1 | . . . . . 1 . Launcher 1 | . 1 . . . . . Special Weapon . | . . . . . . . Impact Weapon 1 | . . . . . . 1 Slashing Weapon . | . . . . . . . Piercing Weapon . | . . . . . . . Special Melee Weapon . | . . . . . . . Unidentified Prototypes . | . . . . . . . Parts Lost 25 | . 3 1 1 . 6 14 Power 4 | . 1 . . . 1 2 Propulsion 12 | . 1 . 1 . 3 7 Utility 4 | . . 1 . . 1 2 Weapon 5 | . 1 . . . 1 3 Highest Loss Streak 9 | . 3 1 1 . 5 9 To Critical Strikes . | . . . . . . . Average Slot Usage (%) 87 | . 91 87 97 88 81 86 Engine 10 | . 13 10 11 11 8 7 Core 1 | . . . . . 2 7 Treads 19 | . . 23 33 33 11 . Leg 13 | . 24 11 8 . 22 30 Device 1 | . . . . . . 14 Storage 11 | . 14 11 11 11 11 9 Protection 8 | . 13 10 11 11 3 . Ballistic Gun 19 | . 14 20 22 22 21 15 Launcher 1 | . 10 . . . . . Naked Turns . | . . . . . . . Heaviest Build 38 | 13 30 36 36 36 36 38 Greatest Support 69 | 20 20 69 69 69 69 46 Greatest Overweight (x) 8 | 1 8 2 . . 1 7 Average Overweight (x) . | . . . . . . . Largest Inventory Capacity 15 | 8 15 15 15 15 15 15 Average Capacity 14 | 6 14 15 15 15 15 15 Most Carried 9 | 3 4 9 8 8 9 5 Average Carried 5 | . 1 5 8 8 6 2 Final Capacity 15 | 8 15 15 15 15 15 15 Final Carried 8 | . 2 8 8 8 6 . Class Distribution -------------------- 80% | Mutant 19% | Scavenger-Mutant Dominant Class ---------------- Mutant | -10/Materials Mutant | -9/Materials Mutant | -9/Mines Mutant | -9/Exiles Scavenger-Mutant | -8/Mines Scavenger-Mutant | -8/Materials Resources | -11 -10 -9 -9 -9 -8 -8 ----------- Run | Yrd Mat Mat Min Exi Min Mat Matter Collected 995 | 217 69 265 110 . 188 146 Remotely . | . . . . . . . Salvage Created 1302 | . 132 302 194 . 291 383 Parts 74 | . 12 25 17 . 11 9 Haulers Intercepted . | . . . . . . . Recyclers Shooed . | . . . . . . . Parts Field Recycled . | . . . . . . . Retrieved Matter . | . . . . . . . Parts Self-Destructed . | . . . . . . . Prevented . | . . . . . . . Kills | -11 -10 -9 -9 -9 -8 -8 ------- Run | Yrd Mat Mat Min Exi Min Mat Combat Hostiles Destroyed 35 | . 6 6 9 . 8 6 Melee 1 | . . . . . . 1 Guns 31 | . 5 6 9 . 7 4 Cannons 1 | . . . . . 1 . AOE 1 | . 1 . . . . . Classes Destroyed 8 | . 4 2 1 . 1 . Builder 1 | . 1 . . . . . Tunneler 1 | . . 1 . . . . Recycler 2 | . . . 1 . . 1 Watcher 3 | . 2 . . . . 1 Swarmer 15 | . 4 . 9 . 2 . Grunt 16 | . 2 4 . . 4 6 Brawler 2 | . . . . . 2 . Sentry 2 | . . 2 . . . . Best Kill Streak 8 | . 3 1 8 . 3 2 Combat Bots Only 5 | . 2 1 5 . 3 2 Max Kills in Single Turn 2 | . 1 1 2 . 2 1 Gunslinging 1 | . . . 1 . 1 . Exploded 1 | . 1 . . . . . Melee 1 | . . . . . . 1 Uniques/NPCs Destroyed . | . . . . . . . Combat | -11 -10 -9 -9 -9 -8 -8 -------- Run | Yrd Mat Mat Min Exi Min Mat Hostile Shots Fired 435 | . 74 38 82 . 45 196 Missed 145 | . 27 16 25 . 11 66 Damage Taken 3568 | . 502 269 454 . 496 1847 Core 773 | . 107 41 55 . 13 557 Absorbed by Shields 194 | . . . . . . 194 Redirected to Shielding 54 | . 38 16 . . . . Core Remaining (%) 76 | 100 57 . . . 72 . Volleys Fired 108 | . 25 19 16 . 22 26 Largest 2 | . 2 2 2 . 2 2 Hottest 67 | . 50 46 46 . 67 48 Shots Fired 183 | . 30 32 32 . 42 47 Gun 170 | . 25 32 32 . 34 47 Cannon 8 | . . . . . 8 . Launcher 5 | . 5 . . . . . Special . | . . . . . . . Kinetic 178 | . 25 32 32 . 42 47 Thermal . | . . . . . . . Explosive 5 | . 5 . . . . . Electromagnetic . | . . . . . . . Robot Hit Streak 11 | . 4 6 5 . 7 11 Robot Miss Streak 5 | . 2 2 3 . 5 3 Penetration Max . | . . . . . . . Secondary Targets 5 | . . . 4 . 1 . Max Gunslinging Chain 1 | . . . 1 . 1 . Shots Hit Robots 133 | . 18 20 19 . 34 42 Core Hits 72 | . 13 13 10 . 19 17 Critical Kills 2 | . 1 . . . . 1 Critical Parts Destroyed 1 | . . . . . . 1 Critical Strikes 3 | . 1 . . . . 2 Destroy 2 | . 1 . . . . 1 Smash 1 | . . . . . . 1 Melee Attacks 7 | . . . . . . 7 Impact 7 | . . . . . . 7 Slashing . | . . . . . . . Piercing . | . . . . . . . Sneak Attacks . | . . . . . . . Combat Hostiles . | . . . . . . . Follow-up Attacks . | . . . . . . . Damage Inflicted 2569 | . 359 287 376 . 616 931 Guns 1756 | . 110 277 376 . 423 570 Cannons 187 | . . . . . 187 . Explosions 249 | . 249 . . . . . Melee 326 | . . . . . . 326 Ramming 51 | . . 10 . . 6 35 Kinetic 1943 | . 110 277 376 . 610 570 Thermal . | . . . . . . . Explosive 249 | . 249 . . . . . Electromagnetic . | . . . . . . . Impact 326 | . . . . . . 326 Slashing . | . . . . . . . Piercing . | . . . . . . . Highest Corruption 1 | . . . . . 1 . Average Corruption 1 | . . . . . 1 . Corruption Purged . | . . . . . . . Corruption Blocked . | . . . . . . . Effects 6 | . . . . . 6 . Message Errors 1 | . . . . . 1 . Matter Fused 1 | . . . . . 1 . Heat Flow Errors 1 | . . . . . 1 . Parts Fused 1 | . . . . . 1 . Data Loss (minor) 2 | . . . . . 2 . Overload Shots . | . . . . . . . Overflow Damage 28 | . . . . . . 28 Projectiles . | . . . . . . . Explosions . | . . . . . . . Melee 28 | . . . . . . 28 Knockbacks 3 | . . . . . 3 . Impact . | . . . . . . . Kinetic 3 | . . . . . 3 . Secondary . | . . . . . . . Self-Inflicted Damage . | . . . . . . . Shots . | . . . . . . . Rammed 2 | . . 1 . . 1 . Targets Rammed 7 | . 1 1 . . 1 4 Kicked 5 | . 1 . . . . 4 Crushed . | . . . . . . . Highest Temperature 138 | . 25 6 . . 138 47 Average Temperature 36 | . 11 3 . . 67 11 Received Heat Transfer 1146 | . 75 141 . . 216 714 Siege Activations . | . . . . . . . Robots Corrupted . | . . . . . . . Combat Hostiles . | . . . . . . . Parts Fried 2 | . . . . . . 2 Impact Corruptions 1 | . . . . . . 1 Robots Melted . | . . . . . . . Combat Hostiles . | . . . . . . . Parts Melted . | . . . . . . . Heat Transferred . | . . . . . . . Parts Sabotaged . | . . . . . . . Parts Stolen . | . . . . . . . Parts Stripped . | . . . . . . . Power Chain Reactions . | . . . . . . . Alert | -11 -10 -9 -9 -9 -8 -8 ------- Run | Yrd Mat Mat Min Exi Min Mat Peak Influence 208 | . 208 175 195 . 85 87 Initial 45 | . . 24 45 . . 27 Average 63 | . 53 89 138 . 35 39 Maximum Alert Level 1 | . 1 . . . . . Low Security (%) 97 | 100 87 100 100 . 100 100 Level 1 2 | . 12 . . . . . Level 2 . | . . . . . . . Level 3 . | . . . . . . . Level 4 . | . . . . . . . Level 5 . | . . . . . . . High Security . | . . . . . . . Max Security . | . . . . . . . Squads Dispatched 4 | . 1 1 . . . 2 Investigation . | . . . . . . . Extermination . | . . . . . . . Reinforcement 4 | . 1 1 . . . 2 Assault . | . . . . . . . Garrison . | . . . . . . . Intercept . | . . . . . . . Searches Triggered . | . . . . . . . Construction Impeded . | . . . . . . . Haulers Reinforced . | . . . . . . . Active Scanning Responses . | . . . . . . . Cargo Convoy Interrupts . | . . . . . . . Stealth | -11 -10 -9 -9 -9 -8 -8 --------- Run | Yrd Mat Mat Min Exi Min Mat Distress Signals 3 | . . 1 . . . 2 Communications Jammed . | . . . . . . . Distress Signals . | . . . . . . . Times Spotted 62 | . 12 11 11 . 9 19 Peak Tracking Total 9 | . 3 3 6 . 3 9 Tactical Retreats 2 | . . 2 . . . . Traps | -11 -10 -9 -9 -9 -8 -8 ------- Run | Yrd Mat Mat Min Exi Min Mat Traps Triggered 3 | . 3 . . . . . Indirectly . | . . . . . . . Trap Hack Attempts . | . . . . . . . Triggered . | . . . . . . . Disarmed . | . . . . . . . Reprogrammed . | . . . . . . . Reused . | . . . . . . . Traps Extracted . | . . . . . . . Installed . | . . . . . . . Triggered . | . . . . . . . Machines | -11 -10 -9 -9 -9 -8 -8 ---------- Run | Yrd Mat Mat Min Exi Min Mat Machines Disabled 2 | . 2 . . . . . Max in Single Turn 1 | . 1 . . . . . Machines Repaired . | . . . . . . . Machines Dismantled . | . . . . . . . Machines Sabotaged . | . . . . . . . Overloaded Fab Kills . | . . . . . . . Hacking | -11 -10 -9 -9 -9 -8 -8 --------- Run | Yrd Mat Mat Min Exi Min Mat Machines Accessed 7 | . 2 3 . 1 1 . Terminals 5 | . 1 3 . . 1 . Fabricators . | . . . . . . . Repair Stations . | . . . . . . . Recycling Units 1 | . 1 . . . . . Scanalyzers . | . . . . . . . Garrison Access . | . . . . . . . Total Hacks 17 | . 7 7 . 2 1 . Successful 10 | . 4 3 . 2 1 . Failed 7 | . 3 4 . . . . Catastrophic . | . . . . . . . Database Lockouts . | . . . . . . . Manual 2 | . . . . . . 2 Terminals 10 | . 2 7 . . 1 . Fabricators . | . . . . . . . Repair Stations . | . . . . . . . Recycling Units 5 | . 5 . . . . . Scanalyzers . | . . . . . . . Garrison Access . | . . . . . . . Terminal Hacks 7 | . 1 3 . 2 1 . Record 2 | . . . . 2 . . Prototype ID Bank 1 | . . 1 . . . . Locate Traps 1 | . . 1 . . . . Recall Investigation 1 | . . 1 . . . . Zone Layout 2 | . 1 . . . 1 . Fabricator Hacks . | . . . . . . . Repair Station Hacks . | . . . . . . . Recycling Unit Hacks 3 | . 3 . . . . . Recycle Component 1 | . 1 . . . . . Process 1 | . 1 . . . . . Retrieve Components 1 | . 1 . . . . . Scanalyzer . | . . . . . . . Garrison Access Hacks . | . . . . . . . Unauthorized Hacks . | . . . . . . . Terminals . | . . . . . . . Fabricators . | . . . . . . . Repair Stations . | . . . . . . . Recycling Units . | . . . . . . . Scanalyzers . | . . . . . . . Garrison Access . | . . . . . . . Data Cores Recovered . | . . . . . . . Used . | . . . . . . . Hacking Detections 3 | . 1 1 . . . 1 Full Trace Events . | . . . . . . . Feedback Events . | . . . . . . . Feedback Blocked . | . . . . . . . Robot Schematics Acquired . | . . . . . . . Robots Built . | . . . . . . . Authchips . | . . . . . . . Time . | . . . . . . . Total Robot Build Rating . | . . . . . . . Part Schematics Acquired . | . . . . . . . Parts Built . | . . . . . . . Authchips . | . . . . . . . Time . | . . . . . . . Total Part Build Rating . | . . . . . . . Parts Repaired . | . . . . . . . Time . | . . . . . . . Parts Recycled 1 | . 1 . . . . . Recycled Matter 26 | . 26 . . . . . Retrieved Matter . | . . . . . . . Retrieved Components . | . . . . . . . Parts Scanalyzed . | . . . . . . . Part Schematics Acquired . | . . . . . . . Parts Damaged . | . . . . . . . Bothacking | -11 -10 -9 -9 -9 -8 -8 ------------ Run | Yrd Mat Mat Min Exi Min Mat Used RIF Installer . | . . . . . . . Robots Hacked . | . . . . . . . Non-combat . | . . . . . . . Combat . | . . . . . . . Robot Hacks Applied . | . . . . . . . Relay Couplers Released . | . . . . . . . Fabnet Peak Effective % . | . . . . . . . Robots Rewired . | . . . . . . . Allies Hacked . | . . . . . . . Hacks Repelled . | . . . . . . . Allies | -11 -10 -9 -9 -9 -8 -8 -------- Run | Yrd Mat Mat Min Exi Min Mat Total Allies . | . . . . . . . Largest Group . | . . . . . . . Highest-Rated Group . | . . . . . . . Highest-Rated Ally . | . . . . . . . Total Orders . | . . . . . . . Ally Attacks . | . . . . . . . Total Damage . | . . . . . . . Kills . | . . . . . . . Allies Corrupted . | . . . . . . . Allies Melted . | . . . . . . . Intel | -11 -10 -9 -9 -9 -8 -8 ------- Run | Yrd Mat Mat Min Exi Min Mat Robot Analysis Total . | . . . . . . . Derelict Logs Recovered . | . . . . . . . Drone Launches . | . . . . . . . Drone Recoveries . | . . . . . . . Exploration | -11 -10 -9 -9 -9 -8 -8 ------------- Run | Yrd Mat Mat Min Exi Min Mat Turns Passed 5498 | 71 841 569 535 1899 1159 424 Spaces Moved 3036 | 59 414 271 305 1187 640 160 Core 33 | 29 3 . . . . 1 Treads 1931 | . . 215 305 1187 224 . Legs 1071 | 30 410 56 . . 416 159 Wheels . | . . . . . . . Hover . | . . . . . . . Flight 1 | . 1 . . . . . Fastest Speed 50 | 50 120 160 160 160 120 120 Average Speed 164 | 101 185 180 160 160 168 125 Slowest Speed 450 | 120 450 260 160 160 190 400 Overloaded Moves . | . . . . . . . Propulsion Burnouts . | . . . . . . . Robots Hopped . | . . . . . . . Cave-ins Triggered . | . . . . . . . Exploration Rate (%) 47 | 4 48 21 66 91 95 10 Regions Visited 6 Branch Regions 3 Pre-discovered Areas 1 | . . . . 1 . . Known Exits Taken . | . . . . . . . Unknown Exits Taken 6 | 1 1 1 1 1 1 . Scrap Searched 2 | . . . 1 . 1 . Spaces Dug . | . . . . . . . Terrain Destroyed 21 | . 21 . . . . . Melee . | . . . . . . . Projectile . | . . . . . . . AOE 21 | . 21 . . . . . Terrain Rammed . | . . . . . . . Walls Destroyed . | . . . . . . . Machines Disabled . | . . . . . . . Actions | -11 -10 -9 -9 -9 -8 -8 --------- Run | Yrd Mat Mat Min Exi Min Mat Total 3360 | 70 464 319 320 1187 677 323 Wait 116 | . . . . . . 116 Move 3030 | 58 413 270 304 1186 639 160 Hop . | . . . . . . . Pick Up 39 | 6 11 15 . . 5 2 Fast Attach . | . . . . . . . Attach 31 | 6 6 5 . . 6 8 Detach . | . . . . . . . Swap 8 | . 2 5 . . 1 . Drop 11 | . 6 4 . . 1 . Fire 108 | . 25 19 16 . 22 26 Melee 7 | . . . . . . 7 Ram . | . . . . . . . Kick 5 | . 1 . . . . 4 Crush 2 | . . 1 . . 1 . Escape Stasis . | . . . . . . . Rewire 3 | . . . . 1 2 . Trap . | . . . . . . . Miscellaneous . | . . . . . . . Route ------- -11/Scrapyard -10/Materials -9/Materials -9/Mines (discovered 2 exits: *Mat / *Exi) -9/Exiles (discovered 2 exits: *Min x2) -8/Mines -8/Materials History --------- Turn | Location | Event 3 | -11/Scrapyard | Discovered new exit (range 15) 72 | -11/Scrapyard | Entered Materials 139 | -10/Materials | Discovered new exit (range 17) 306 | -10/Materials | Build established: Mutant 763 | -10/Materials | Lost 3 parts (1p1n1w) 913 | -10/Materials | Entered another Materials area 913 | -9/Materials | Evolved 2 slots: Propulsion x2 1418 | -9/Materials | Discovered new exit (range 16) 1482 | -9/Materials | Entered Mines 1560 | -9/Mines | Discovered new exit (range 9) 1601 | -9/Mines | Met a Derelict bent on vengeance 2006 | -9/Mines | Deemed a non-threat by the Exiles lab entrance 2007 | -9/Mines | Discovered new exit (range 5) 2017 | -9/Mines | Entered Exiles 2061 | -9/Exiles | Discovered new exit (range 14) 2083 | -9/Exiles | Met 8R-AWN 2117 | -9/Exiles | Met EX-HEX 2226 | -9/Exiles | Met EX-DEC 2286 | -9/Exiles | Learned location of Zion (-7) 2358 | -9/Exiles | Met EX-BIN 2394 | -9/Exiles | Aligned with FarCom system 2396 | -9/Exiles | Given EX-Vault access code 2908 | -9/Exiles | Discovered new exit (range 15) 3106 | -9/Exiles | Visited The Gauntlet 3916 | -9/Exiles | Entered Mines 4346 | -8/Mines | Lost 5 parts (3n1u1w) 4629 | -8/Mines | Build established: Scavenger-Mutant 5061 | -8/Mines | Discovered new exit (range 9) 5075 | -8/Mines | Entered Materials 5075 | -8/Materials | Evolved 2 slots: Power x1, Utility x1 5453 | -8/Materials | Lost 9 parts (2p3n2u2w) 5486 | -8/Materials | Core integrity fell below 50% 5495 | -8/Materials | Core integrity fell below 20% 5499 | -8/Materials | Destroyed by Y-45 Defender with Heavy Assault Rifle Last Messages --------------- U-05 Engineer destroyed. R-06 Scavenger collects Wheel. Penetrated by Slug. Destroyed Imp. Heat Sink. G-47 Trooper system corrupted by crushing effect. G-47 Trooper misfires. G-47 Trooper system terminally corrupted. Particle Gun fried. Lgt. Nuclear Core fried. Arm. Treads destroyed. Penetrated by Slug. R-06 Scavenger collects Wheel. Penetrated by Slug. R-06 Scavenger collects Structural Scanner. G-47 Trooper suffers critical hit (Smash). G-47 Trooper destroyed. Penetrated by Slug. R-06 Scavenger collects Lgt. Ion Engine. Penetrated by Slug. Map ----- +----------------------------------------------------+ | | | | | | | | | ?????????????????????????????????????????????????? | | ?????????????????????????????????????????????????? | | ?????????????????????????????????????????????????? | | ?????????????????????????????????????????????????? | | ?????????????????????????????????????????????????? | | ?????????????????????????????????????????????????? | | ?????????????????????????????????????????????????? | | ?????????????????????????????????????????????????? | | ?????????????????????????????????????????????????? | | ???????????????????????????????????#####????????? | | ???????????????????????????????????# #????????? | | ???????????????????????????????????# #???????? | | ???????????????????????????????????# #??????? | | ??????????o????????????????????????# ###???? | | ???????????????????????????????????# #T##### | | ???????????????????????????????????# T | | ???????????????????????????????????# ! | | ????????????????????################ """ | | ????????????????????#!!//]]## # """ | | ????????????????????#!!/ ]]## """ # """ | | ????????????????????# ## """ / | | ?????????????# ### @%## """ # | | ?????????????# Y % %gharr w # ########### | | ?????????????# ###### # ########??? | | ?????????????# #### ?????######## %# #??? | | ?????????????## ????# ????????????# %# """ #??? | | ??????????????# ?????#?????????????#%% # "Y" #??? | | ???????????????????????????????????# =%/%% #??? | | ???????????????????????????????????# # #??? | | ???????????????????????????????????# %# #??? | | ???????????????????????????????????# % ########??? | | ???????????????????????????????????# #?????????? | | ???????????????????????????????????# #?????????? | | ???????????????????????????????????# #?????????? | | ???????????????????????????????????+ ?????????? | | ???????????????????????????????????# ????????? | | ???????????????????????????????????# =???????? | | ???????????????????????????????????# !!??????? | | ???????????????????????????????????# !!!?????? | | ???????????????????????????????????# ?????? | | ???????????????????????????????????# " ????? | | ???????????????????????????????????+ "%" ???? | | ???????????????????????????????????# " """ "???? | | ???????????????????????????????????? "????????? | | ???????????????????????????????????? "????????? | | ???????????????????????????????????? ??????????? | +----------------------------------------------------+ Best States ------------- Heat Dissipation 31 Energy Generation 19 Energy Capacity 310 Matter Stores 300 Matter Capacity 300 Sight Range 16 Terrain Scan Density 10 Additional Mass Support 6 Armor Coverage 150 Weapon Shielding 33 Evasion (%) 55 Recoil Reduction 3 Item Schematics ----------------- None Robot Schematics ------------------ None Fabricated ------------ Nothing Alien Tech Used ----------------- None Achievements -------------- None Challenges ------------ None Game ------ Seed TransportOmegaCorpse Manual? 0 Play Time 00:31:14 Cumulative 1.0 hours Start 2024.03.31 @ 10:47:52 End 2024.03.31 @ 11:15:07 Sessions 1 Manual Loads 0 Difficulty Rogue Special Mode None Game No. 7 Rogue 7 Adventurer 0 Explorer 0 Win Type - Total 0 Types 0/0/0/0/0/0/0/0/0 Lore% 1 Gallery% 4 Achievement% 3 Wizard Run 0 Options --------- Layout 1 ASCII 0 Keyboard 0 Movement Arrows Keybinds 0 Fullscreen 2 Font 24/Smallcaps Map View 50x35 Zoom Use 0% Tactical HUD 0 Map Filters NONE Filters NONE Steam 1 RUN: cc44d0a2-b549-4b6f-a456-47b8f04aad80